bitfinex/quotes_ETHUSD_20240621
["timestamp","ask_amount","ask_price","bid_price","bid_amount"]
[1718935261539,2.2991,3533.4,3532.9,3.0]
[1718935262049,2.2991,3533.4,3532.9,4.134211]
[1718935262459,2.2991,3533.4,3533.0,3.0]
[1718935262619,2.2991,3533.4,3532.9,1.134211]
[1718935263120,2.2991,3533.4,3533.0,0.868]
[1718935264568,0.32929026,3533.3,3533.0,0.868]
[1718935265054,0.32929026,3533.3,3532.9,2.002211]
[1718935265840,0.32929026,3533.3,3532.9,1.134211]
[1718935266028,0.32929026,3533.3,3532.8,0.868]
[1718935266029,0.81948365,3533.3,3532.8,0.868]
[1718935266231,0.32929026,3533.2,3532.8,0.868]
[1718935267030,2.2991,3533.4,3533.0,0.868]
[1718935267376,0.32928892,3533.3,3532.7,1.134236]
[1718935267526,0.81948579,3533.3,3532.9,0.868]
[1718935267729,0.32928892,3533.2,3532.9,0.868]
[1718935268226,0.49019687,3533.4,3532.9,0.868]
[1718935268422,0.32933832,3533.3,3532.9,0.868]
[1718935269552,0.32933832,3533.3,3532.8,3.0]
[1718935269553,0.32933832,3533.3,3532.7,1.134236]
[1718935269755,0.32933832,3533.3,3532.8,0.868]
[1718935270627,0.32933832,3533.3,3532.7,1.134236]
[1718935270827,2.61096384,3533.2,3532.6,3.0]
[1718935271174,2.2991,3533.0,3532.6,3.0]
[1718935271328,0.81953835,3532.9,3532.6,3.0]
[1718935271531,0.81953835,3532.9,3532.4,4.134344]
[1718935271532,0.4140738,3532.8,3532.4,4.134344]
[1718935271786,0.32933832,3532.7,3532.4,4.134344]
[1718935272275,0.49020003,3532.9,3532.4,4.134344]
[1718935272427,0.32903699,3532.8,3532.4,5.002344]
[1718935273273,0.32903699,3532.7,3532.4,5.002344]
[1718935273562,2.2991,3533.0,3532.4,5.002344]
[1718935273744,0.32899345,3532.9,3532.4,5.002344]
[1718935274550,0.81925403,3532.9,3532.4,5.002344]
[1718935274732,0.32899345,3532.8,3532.4,5.002344]
[1718935275984,0.32899345,3532.7,3532.4,5.002344]
[1718935276300,0.49026051,3532.9,3532.4,5.002344]
[1718935276468,0.32908342,3532.8,3532.4,5.002344]
[1718935277089,2.2991,3533.0,3532.4,5.002344]
[1718935277373,0.32904446,3532.9,3532.4,2.002344]
[1718935277684,0.32904446,3532.9,3532.4,1.134344]
[1718935277891,0.32904446,3532.9,3532.2,3.0]
[1718935277892,2.56191445,3532.8,3532.2,3.868]
[1718935278061,0.32904446,3532.7,3532.3,0.868]
[1718935278266,2.2991,3532.8,3532.3,0.868]
[1718935278580,2.2991,3532.8,3532.5,0.868]
[1718935278787,2.2991,3533.6,3532.7,0.868]
[1718935278952,1.2951996,3533.5,3532.7,0.868]
[1718935279153,0.32894242,3533.4,3532.7,0.868]
[1718935279352,2.2991,3533.3,3532.7,0.868]
[1718935279653,0.81917428,3533.2,3532.2,4.892714]
[1718935279964,0.32894242,3533.1,3532.3,1.65473331]
[1718935280172,2.2991,3533.0,3532.6,0.868]
[1718935280373,0.32894242,3532.9,3532.6,0.868]
[1718935280581,0.41348893,3532.9,3532.6,0.868]
[1718935280781,0.08454651,3532.9,3532.4,3.0]
[1718935281086,2.2991,3533.3,3532.7,0.868]
[1718935281290,0.81938039,3533.2,3532.7,0.868]
[1718935281464,0.32914665,3533.1,3532.5,0.868]
[1718935281662,0.32914665,3533.1,3532.5,0.5552414]
[1718935281889,0.32914665,3533.1,3532.6,0.868]
[1718935282398,0.08460101,3533.0,3532.6,0.868]
[1718935282686,0.32914665,3532.9,3532.6,0.868]
[1718935283053,0.08461195,3532.8,3532.6,0.868]
[1718935283491,0.49026203,3533.2,3532.6,0.868]
[1718935283803,0.08461195,3532.7,3532.6,0.868]
[1718935284102,0.08461195,3532.7,3532.6,1.36532414]
[1718935284256,0.4902567,3533.2,3532.6,1.36532414]
[1718935284457,0.41364019,3533.1,3532.6,0.868]
[1718935284784,0.32902824,3533.0,3532.6,0.868]
[1718935285154,0.32902824,3532.9,3532.6,0.868]
[1718935285396,0.4902567,3533.2,3532.6,0.868]
[1718935285551,0.08459738,3532.8,3532.6,0.868]
[1718935285883,0.08446654,3532.7,3532.6,0.868]
[1718935286355,0.08446654,3532.7,3532.6,1.3098]
[1718935286690,0.49026288,3533.2,3532.6,1.3098]
[1718935286887,0.08448838,3532.7,3532.6,0.868]
[1718935287075,0.49026288,3533.2,3532.6,0.868]
[1718935287250,0.08448838,3532.7,3532.6,0.868]
[1718935287454,0.49026288,3533.2,3532.6,0.868]
[1718935287697,0.41354188,3533.1,3532.6,0.868]
[1718935287861,0.3290535,3533.0,3532.6,0.868]
[1718935288280,0.41354188,3532.9,3532.6,0.868]
[1718935288504,0.3290535,3532.8,3532.4,0.868]
[1718935288667,0.3290535,3532.8,3532.4,1.95190331]
[1718935288879,0.3290535,3532.8,3532.4,4.95190331]
[1718935289197,0.49025857,3533.2,3532.4,4.95190331]
[1718935289416,0.32909092,3533.1,3532.4,4.95190331]
[1718935289696,2.2991,3533.0,3532.4,3.868]
[1718935289895,0.81934949,3532.9,3532.4,0.868]
[1718935290054,0.32909092,3532.8,3532.4,0.868]
[1718935292281,0.32909092,3532.7,3532.4,2.03870331]
[1718935292466,0.49027785,3532.9,3532.4,3.868]
[1718935292807,0.3289907,3532.8,3532.4,0.868]
[1718935293416,0.3289907,3532.8,3532.3,3.55]
[1718935293706,0.3289907,3532.8,3532.3,1.418]
[1718935293863,0.3289907,3532.8,3532.3,4.418]
[1718935294504,0.3289907,3532.7,3532.3,4.418]
[1718935294709,0.49027824,3532.9,3532.3,4.418]
[1718935294871,0.32901511,3532.8,3532.3,4.418]
[1718935295666,0.32901511,3532.7,3532.3,4.418]
[1718935295867,0.49027736,3532.9,3532.3,5.66453331]
[1718935296108,0.32900165,3532.8,3532.3,5.66453331]
[1718935296906,0.32900165,3532.8,3532.3,4.418]
[1718935298878,0.32900165,3532.7,3532.3,4.418]
[1718935299072,0.49027811,3532.9,3532.3,4.418]
[1718935299273,0.08439024,3532.6,3532.3,4.418]
[1718935299503,0.4902788,3532.9,3532.3,4.418]
[1718935299705,0.32901448,3532.8,3532.3,4.418]
[1718935300016,0.41340472,3532.8,3532.3,4.418]
[1718935300200,0.32901448,3532.7,3532.3,4.418]
[1718935300376,0.32901448,3532.6,3532.3,4.418]
[1718935300711,0.49027897,3532.9,3532.3,4.418]
[1718935300910,0.32900997,3532.8,3532.3,4.418]
[1718935301078,0.41340021,3532.8,3532.3,3.0]
[1718935301418,0.32900997,3532.7,3532.2,5.002414]
[1718935301599,0.49027897,3532.9,3532.2,5.002414]
[1718935301600,0.32900997,3532.6,3532.2,5.002414]
[1718935301800,0.76921687,3532.9,3532.2,5.002414]
[1718935301996,2.2991,3532.7,3532.2,5.002414]
[1718935302177,0.81930166,3532.6,3532.2,5.002414]
[1718935302373,0.49028103,3532.6,3532.2,5.002414]
[1718935302611,0.49028103,3532.6,3532.2,4.134414]
[1718935302811,0.32902156,3532.5,3532.2,4.134414]
[1718935303026,0.32902156,3532.5,3532.2,3.0]
[1718935304285,2.2991,3532.4,3532.2,3.0]
[1718935304612,0.81930259,3532.3,3532.2,3.0]
[1718935305121,2.94107437,3533.2,3532.2,2.1763]
[1718935305332,2.2991,3533.5,3532.7,0.868]
[1718935305333,0.49027614,3532.8,3532.7,0.868]
[1718935305536,0.32858577,3532.8,3532.7,1.418]
[1718935305833,0.4126379,3532.8,3532.7,1.418]
[1718935306021,0.4126379,3532.8,3532.7,0.55]
[1718935306229,0.08405213,3532.8,3532.6,0.55]
[1718935306411,0.49027614,3533.4,3532.6,0.55]
[1718935306733,0.08420846,3532.7,3532.6,0.55]
[1718935306940,0.49027614,3533.4,3532.6,0.55]
[1718935307296,0.08420846,3533.3,3532.6,0.55]
[1718935308600,0.49024316,3533.4,3532.6,0.55]
[1718935308948,0.08420846,3533.2,3532.6,0.55]
[1718935309117,0.49024316,3533.4,3532.6,0.55]
[1718935309321,0.08420846,3533.1,3532.6,0.55]
[1718935309518,0.49024316,3533.4,3532.6,0.4418]
[1718935309730,0.08420846,3533.0,3532.5,0.868]
[1718935309904,0.49024316,3533.4,3532.5,0.868]
[1718935310237,0.49024316,3533.4,3532.7,0.868]
[1718935310445,0.08420846,3533.3,3532.7,0.868]
[1718935312439,0.08420846,3533.3,3532.4,1.10472661]
[1718935312642,0.08420846,3533.3,3532.7,0.868]
[1718935313710,0.08420846,3533.3,3532.8,0.55]
[1718935313915,0.08420846,3533.3,3532.9,0.1418]
[1718935314419,0.08420846,3533.3,3532.8,0.55]
[1718935314742,0.08420846,3533.3,3532.7,0.55]
[1718935314948,0.08420846,3533.3,3532.7,0.868]
[1718935315159,0.49020171,3533.4,3532.7,0.868]
[1718935316349,0.49020171,3533.4,3532.6,0.55]
[1718935317423,2.2991,3533.3,3532.6,0.55]
[1718935317625,2.38374827,3533.3,3532.5,0.868]
[1718935317952,0.49022041,3533.2,3532.5,0.868]
[1718935318708,0.08464827,3533.1,3532.5,2.16999927]
[1718935318949,0.08464827,3533.1,3532.5,5.16999927]
[1718935319147,0.08464827,3533.1,3532.5,2.16999927]
[1718935319816,0.49022041,3533.2,3532.5,2.16999927]
[1718935320031,0.08460102,3533.0,3532.6,1.13246184]
[1718935320344,0.49022041,3533.2,3532.6,1.13246184]
[1718935320551,0.08460102,3532.9,3532.6,1.13246184]
[1718935320750,2.2991,3533.3,3532.6,1.13246184]
[1718935320961,0.49023216,3533.2,3532.6,1.13246184]
[1718935321112,0.57483318,3533.2,3532.7,0.50004618]
[1718935321454,0.57483318,3533.2,3532.7,1.36804618]
[1718935321615,0.49023216,3533.2,3532.7,4.36804618]
[1718935322015,2.2991,3533.3,3532.7,4.36804618]
[1718935322248,0.08457196,3533.1,3532.8,0.5500508]
[1718935322551,0.4901911,3533.2,3532.8,0.5500508]
[1718935322851,2.2991,3533.3,3532.8,0.5500508]
[1718935323055,0.08457196,3533.1,3532.9,0.55]
[1718935323237,2.2991,3533.3,3532.9,0.55]
[1718935323445,0.08457196,3533.0,3532.9,0.55]
[1718935323621,2.2991,3533.3,3532.9,1.16005126]
[1718935323826,0.08457196,3533.0,3532.9,1.16005126]
[1718935324090,2.2991,3533.3,3532.9,1.16005126]
[1718935324233,0.08457196,3533.0,3532.9,0.55]
[1718935324415,2.2991,3533.3,3532.8,0.55]
[1718935324615,0.08457196,3533.2,3532.8,0.55]
[1718935324913,0.08457196,3533.2,3532.9,0.868]
[1718935324914,0.4901972,3533.2,3532.9,0.868]
[1718935325156,2.2991,3533.7,3533.1,0.868]
[1718935325416,0.08459739,3533.6,3533.5,0.868]
[1718935325648,0.005,3533.8,3533.5,0.868]
[1718935326015,0.005,3533.8,3533.7,0.868]
[1718935326222,0.08959739,3533.8,3533.7,0.868]
[1718935326418,0.08959739,3533.8,3533.7,1.418]
[1718935326683,0.08959739,3533.8,3533.7,1.5598]
[1718935328075,0.005,3533.8,3533.7,1.5598]
[1718935328251,0.08975002,3533.8,3533.7,1.5598]
[1718935328649,0.005,3533.8,3533.7,1.5598]
[1718935329453,0.005,3533.8,3533.7,2.3181]
[1718935330250,0.005,3533.8,3533.7,4.0211]
[1718935330590,0.076725,3534.4,3534.0,2.26371]
[1718935330749,0.076725,3534.4,3534.3,0.868]
[1718935330952,0.076725,3534.4,3534.3,1.236171]
[1718935331192,0.076725,3534.4,3534.3,1.786171]
[1718935331725,0.076725,3534.4,3534.3,1.418]
[1718935332916,0.076725,3534.4,3534.3,2.1763]
[1718935333487,0.076725,3534.4,3534.3,4.3083]
[1718935333801,0.076725,3534.4,3534.3,2.1763]
[1718935334129,2.94107437,3536.2,3534.6,2.26328]
[1718935334331,2.94107437,3536.2,3534.9,1.703]
[1718935334532,2.94107437,3536.2,3535.1,1.703]
[1718935334731,2.94107437,3536.2,3535.2,2.94872924]
[1718935335040,2.94107437,3536.2,3535.3,4.07898696]
[1718935335354,2.2991,3537.3,3536.1,0.868]
[1718935335515,2.2991,3537.3,3536.2,0.55]
[1718935336196,2.2991,3537.8,3536.2,0.55]
[1718935336435,0.24193189,3537.7,3536.2,1.52046191]
[1718935336644,0.24193189,3537.7,3536.2,0.55]
[1718935337136,2.2991,3537.6,3536.2,0.55]
[1718935341754,2.2991,3537.6,3536.2,2.627]
[1718935341954,2.2991,3537.6,3536.3,3.0]
[1718935342110,2.2991,3537.6,3536.4,0.55]
[1718935342311,0.1202189,3537.9,3537.0,2.077]
[1718935342564,0.08387995,3537.5,3537.1,0.55]
[1718935342710,0.1202189,3537.9,3537.1,0.55]
[1718935343059,0.1202189,3537.9,3537.1,3.55]
[1718935343556,0.1202189,3537.9,3537.2,3.0]
[1718935343844,0.1202189,3537.9,3537.3,0.55]
[1718935344012,0.1202189,3537.9,3537.1,0.55]
[1718935344013,0.1202189,3537.9,3537.1,1.52046191]
[1718935344209,0.1202189,3537.9,3537.1,0.55]
[1718935344412,0.1202189,3537.9,3537.0,0.55]
[1718935346445,0.1202189,3537.9,3536.9,3.0]
[1718935347550,0.1202189,3537.9,3537.0,0.55]
[1718935348871,0.1202189,3537.9,3536.9,3.0]
[1718935350036,0.1202189,3537.9,3536.9,4.13296]
[1718935351060,0.1202189,3537.9,3537.0,0.55]
[1718935352778,0.1202189,3537.9,3537.0,1.63375791]
[1718935354572,0.1202189,3537.9,3537.0,0.55]
[1718935355443,2.2991,3537.8,3536.9,4.13296]
[1718935355649,2.2991,3537.8,3537.1,0.55]
[1718935355952,2.2991,3537.8,3537.0,0.55]
[1718935357850,2.2991,3537.8,3537.0,1.63375791]
[1718935358471,0.1202189,3537.9,3537.0,1.63375791]
[1718935359061,0.1202189,3537.9,3537.2,2.077]
[1718935359275,0.1202189,3537.9,3537.3,0.55]
[1718935359883,0.1202189,3537.9,3537.3,3.55]
[1718935360187,0.1202189,3537.9,3537.4,0.8627]
[1718935360488,0.1202189,3537.9,3537.5,0.55]
[1718935361476,0.1202189,3537.9,3537.2,0.55]
[1718935362110,0.1202189,3537.9,3537.4,2.077]
[1718935362616,0.1202189,3537.9,3537.5,0.55]
[1718935362818,0.1202189,3537.9,3537.4,0.94518992]
[1718935367790,2.2991,3537.8,3537.4,0.55]
[1718935368201,2.2991,3537.8,3537.1,0.55]
[1718935369201,2.2991,3537.8,3537.1,0.95189924]
[1718935369418,0.1202189,3537.9,3537.4,2.077]
[1718935369726,0.1202189,3537.9,3537.5,0.7577]
[1718935369888,0.1202189,3537.9,3537.5,3.7577]
[1718935370292,0.1202189,3537.9,3537.5,3.55]
[1718935371094,2.2991,3537.8,3537.5,3.55]
[1718935371523,2.2991,3537.8,3537.5,3.0]
[1718935371923,2.2991,3537.8,3537.4,2.077]
[1718935372493,0.1202189,3537.9,3537.5,0.55]
[1718935372694,0.1202189,3537.9,3537.6,0.2627]
[1718935372890,0.1202189,3537.9,3537.7,0.55]
[1718935373091,0.0747202,3537.8,3537.7,0.55]
[1718935373905,0.0747202,3537.8,3537.7,0.95189924]
[1718935374094,0.1202189,3537.9,3537.7,0.95189924]
[1718935374302,0.1202189,3537.9,3537.8,2.49845992]
[1718935374527,0.1202189,3537.9,3537.8,6.04845992]
[1718935383482,0.1202189,3537.9,3537.8,4.83545992]
[1718935383685,0.1202189,3537.9,3537.8,1.83545992]
[1718935383885,0.1202189,3537.9,3537.8,1.414]
[1718935384247,0.1202189,3537.9,3537.8,0.55]
[1718935384444,0.1202189,3537.9,3537.7,0.55]
[1718935384659,0.1202189,3537.9,3537.8,1.414]
[1718935388497,2.4193189,3537.9,3537.8,0.55]
[1718935388684,2.4193189,3537.9,3537.3,3.0]
[1718935388886,2.49429829,3537.9,3537.5,0.864]
[1718935389435,2.49429829,3537.9,3537.7,0.864]
[1718935390140,0.19519829,3537.9,3537.7,0.864]
[1718935390614,0.19519829,3537.9,3537.8,0.55]
[1718935390779,0.19519829,3537.9,3537.8,0.6914]
[1718935391175,2.4193189,3537.9,3537.8,0.6914]
[1718935391416,2.49392189,3537.9,3537.8,1.414]
[1718935393339,2.49392189,3537.9,3537.8,0.55]
[1718935393540,2.49392189,3537.9,3537.4,0.91546191]
[1718935393744,2.49392189,3537.9,3537.6,0.864]
[1718935394110,2.4193189,3537.9,3537.6,0.864]
[1718935394730,2.4193189,3537.9,3537.6,1.39694619]
[1718935396316,2.4193189,3537.9,3537.6,0.53294619]
[1718935396518,2.4193189,3537.9,3537.5,0.55]
[1718935396859,0.07450431,3537.8,3537.5,0.55]
[1718935398508,0.07450431,3537.8,3537.4,1.77946191]
[1718935398709,0.07450431,3537.8,3537.3,3.0]
[1718935398710,2.2991,3537.7,3537.3,3.0]
[1718935399207,0.07444947,3537.6,3537.3,3.0]
[1718935402356,0.07444947,3537.6,3537.1,0.864]
[1718935402753,2.2991,3537.7,3537.1,0.864]
[1718935404255,0.1202189,3537.9,3537.1,1.11515791]
[1718935404601,0.1202189,3537.9,3537.8,0.864]
[1718935404890,0.1202189,3537.9,3537.8,1.414]
[1718935404891,0.19442708,3537.9,3537.8,1.414]
[1718935405286,0.1202189,3537.9,3537.8,1.414]
[1718935405505,0.1202189,3537.9,3537.8,0.6914]
[1718935405658,0.1202189,3537.9,3537.8,0.55]
[1718935405857,0.1202189,3537.9,3537.6,0.55]
[1718935406359,0.1202189,3537.9,3537.7,0.05652122]
[1718935406562,0.1202189,3537.9,3537.8,0.55]
[1718935406986,0.1202189,3537.9,3537.6,0.55]
[1718935407169,0.1202189,3537.9,3537.7,0.5625]
[1718935407379,0.1202189,3537.9,3537.8,0.55]
[1718935408315,0.1202189,3537.9,3537.8,2.625]
[1718935408462,2.2991,3539.3,3537.8,5.91436146]
[1718935408661,2.2991,3539.3,3537.9,6.80230528]
[1718935408662,0.22991,3539.2,3537.9,6.80230528]
[1718935408864,2.2991,3539.3,3538.0,3.55]
[1718935411287,2.2991,3539.3,3538.0,3.0]
[1718935412007,2.2991,3539.3,3538.1,0.55]
[1718935412904,0.07485881,3539.2,3538.1,0.55]
[1718935413090,0.07485881,3539.2,3538.2,1.03523053]
[1718935413404,2.2991,3539.3,3538.3,0.55]
[1718935413762,0.07485881,3539.2,3538.3,0.55]
[1718935414166,2.2991,3539.3,3538.3,0.55]
[1718935414411,2.2991,3539.3,3538.1,0.55]
[1718935414576,0.30476881,3539.2,3538.1,0.55]
[1718935414896,0.22991,3539.2,3538.1,0.55]
[1718935415596,0.22991,3539.2,3538.0,3.0]
[1718935415772,2.2991,3539.1,3538.0,3.0]
[1718935417530,2.2991,3539.1,3538.1,0.55]
[1718935420110,2.2991,3539.1,3538.0,3.0]
[1718935420468,2.2991,3539.1,3538.1,0.55]
[1718935420774,0.07489538,3539.0,3538.1,0.55]
[1718935421011,2.2991,3538.9,3538.1,1.132553]
[1718935421389,0.07486978,3538.8,3538.0,3.0]
[1718935421571,2.2991,3538.9,3538.0,3.0]
[1718935423325,2.2991,3538.9,3538.1,0.0565226]
[1718935423621,0.07486978,3538.8,3538.1,0.0565226]
[1718935423833,0.07486978,3538.8,3538.1,1.03437807]
[1718935423991,2.2991,3538.9,3538.1,1.03437807]
[1718935424899,0.07479668,3538.8,3538.1,1.03437807]
[1718935425102,2.2991,3538.9,3538.1,1.03437807]
[1718935425405,0.07479668,3538.8,3538.1,1.03437807]
[1718935425751,2.2991,3538.9,3538.2,1.27518268]
[1718935425889,0.07479668,3538.7,3538.4,0.865]
[1718935426218,0.865,3539.4,3538.5,0.55]
[1718935426425,0.865,3539.4,3538.6,0.46413401]
[1718935426623,0.07483688,3539.3,3538.7,0.02263337]
[1718935426921,0.865,3539.0,3538.4,3.0]
[1718935427138,1.18889369,3539.0,3538.4,3.0]
[1718935427343,0.07492824,3538.9,3538.4,3.0]
[1718935429533,2.2991,3539.1,3538.4,3.0]
[1718935429739,0.07487345,3538.8,3538.4,3.0]
[1718935430056,2.2991,3539.1,3538.4,3.0]
[1718935430214,0.07487345,3538.7,3538.4,3.0]
[1718935430413,3.1641,3539.1,3538.4,3.0]
[1718935430622,0.07487345,3538.6,3538.4,3.0]
[1718935430937,0.07488441,3538.5,3538.4,3.0]
[1718935431142,2.2991,3539.4,3538.4,0.55]
[1718935431464,2.2991,3539.4,3538.5,0.6915]
[1718935431633,0.07488441,3539.3,3538.5,0.6915]
[1718935432748,0.93988441,3539.3,3538.5,0.6915]
[1718935433284,0.07488441,3539.3,3538.5,0.6915]
[1718935433457,0.07488441,3539.3,3538.5,0.1415]
[1718935433851,3.1641,3539.4,3538.5,0.1415]
[1718935434054,0.07492095,3539.2,3538.5,0.1415]
[1718935434251,3.1641,3539.4,3538.5,0.1415]
[1718935434461,0.07492095,3539.1,3538.5,1.0065]
[1718935434779,0.07492095,3539.0,3538.7,0.865]
[1718935434927,2.2991,3539.4,3538.6,0.40065]
[1718935435271,0.07500498,3539.3,3538.6,1.26565]
[1718935437568,0.07500498,3539.3,3538.6,0.40065]
[1718935437766,0.07500498,3539.3,3538.6,1.26565]
[1718935438567,0.07500498,3539.3,3538.8,0.865]
[1718935438810,0.07274439,3539.3,3538.8,0.865]
[1718935438967,0.07274439,3539.3,3538.6,0.40065]
[1718935439711,0.07274439,3539.3,3538.7,0.865]
[1718935440011,2.2991,3539.8,3538.6,0.40065]
[1718935440012,0.865,3539.5,3538.6,0.40065]
[1718935440523,0.07507578,3539.4,3538.6,0.40065]
[1718935441305,0.07507578,3539.4,3538.7,0.865]
[1718935441504,0.07507578,3539.4,3538.6,0.40065]
[1718935441505,0.865,3539.7,3538.6,0.40065]
[1718935441712,0.865,3539.7,3538.6,1.26565]
[1718935441713,0.07508308,3539.6,3538.6,1.26565]
[1718935442415,3.1641,3539.5,3538.6,0.40065]
[1718935442778,0.07508308,3539.4,3538.6,0.40065]
[1718935444187,0.07508308,3539.4,3538.6,1.26565]
[1718935444503,0.07508308,3539.4,3538.7,0.55]
[1718935444714,0.07508308,3539.4,3538.8,0.195715]
[1718935446533,0.07508308,3539.4,3538.9,0.04866868]
[1718935447124,2.2991,3539.5,3538.9,0.04866868]
[1718935450453,2.2991,3539.9,3539.1,0.865]
[1718935450602,2.2991,3539.9,3539.3,0.865]
[1718935450922,2.2991,3539.9,3539.3,0.04866317]
[1718935450923,0.07513424,3539.8,3539.3,0.04866317]
[1718935451127,2.2991,3539.9,3539.3,0.04866317]
[1718935451311,2.2991,3539.9,3539.2,0.05650137]
[1718935451627,2.2991,3539.9,3539.3,0.50364991]
[1718935455206,2.2991,3539.9,3539.3,0.44715014]
[1718935455723,2.2991,3539.9,3539.1,0.865]
[1718935455926,2.2991,3539.8,3539.0,3.0]
[1718935456848,2.2991,3539.8,3539.1,0.865]
[1718935457857,3.1641,3540.1,3539.1,0.865]
[1718935458154,3.1641,3540.1,3539.2,1.00196191]
[1718935459645,2.2991,3540.1,3539.2,1.00196191]
[1718935459847,3.1641,3540.1,3539.3,0.0564533]
[1718935461361,3.1641,3540.1,3539.4,1.001962]
[1718935461727,0.07540822,3540.0,3539.4,1.001962]
[1718935461932,0.07540822,3540.0,3539.5,0.865]
[1718935462250,0.1202189,3541.4,3539.6,0.865]
[1718935462251,0.865,3540.6,3539.6,0.865]
[1718935462394,3.06129327,3541.4,3539.4,1.58885439]
[1718935462395,2.2991,3541.1,3539.4,7.74347352]
[1718935462595,2.2991,3541.1,3540.2,0.865]
[1718935462848,0.865,3541.0,3540.0,6.15461913]
[1718935463130,3.1641,3541.0,3540.0,6.15461913]
[1718935463338,2.2991,3540.7,3540.1,3.0]
[1718935463846,2.2991,3540.5,3539.5,6.15461913]
[1718935464147,2.2991,3539.6,3539.5,6.15461913]
[1718935464432,2.2991,3539.6,3539.1,1.132254]
[1718935466097,2.2991,3539.9,3539.1,1.132254]
[1718935466323,2.2991,3539.9,3539.2,2.4837254]
[1718935466490,2.2991,3539.9,3539.2,5.4837254]
[1718935468096,2.2991,3539.9,3539.2,3.0]
[1718935468296,2.2991,3539.9,3539.1,1.997254]
[1718935470039,2.2991,3539.9,3539.3,0.865]
[1718935470535,0.07315051,3539.8,3539.3,0.865]
[1718935472301,0.07315051,3539.8,3539.5,0.865]
[1718935472501,2.2991,3540.3,3539.5,0.865]
[1718935472736,2.2991,3540.2,3539.1,1.132254]
[1718935472949,2.2991,3540.2,3539.3,0.865]
[1718935472950,2.37233818,3540.2,3539.3,0.865]
[1718935473105,2.2991,3540.2,3539.3,0.865]
[1718935473436,2.2991,3540.2,3539.5,0.865]
[1718935473437,0.07323818,3540.1,3539.5,0.865]
[1718935473606,0.07323818,3540.1,3539.7,0.865]
[1718935474042,0.07323818,3540.1,3539.9,0.865]
[1718935474244,2.2991,3540.5,3539.9,0.865]
[1718935474533,0.07325641,3540.0,3539.9,0.865]
[1718935474737,2.2991,3540.5,3539.9,0.865]
[1718935475040,0.865,3541.2,3540.2,0.865]
[1718935475407,0.07341344,3541.1,3540.2,0.865]
[1718935475809,2.2991,3541.0,3540.4,0.865]
[1718935476219,0.07341344,3540.9,3540.4,0.865]
[1718935480213,2.2991,3541.0,3540.4,0.865]
[1718935481750,2.2991,3541.0,3540.4,0.3865]
[1718935481911,2.2991,3541.0,3540.1,3.865]
[1718935482247,2.2991,3541.0,3540.1,3.0]
[1718935483734,2.2991,3541.0,3540.1,3.865]
[1718935484338,2.2991,3541.0,3540.3,0.865]
[1718935485428,2.2991,3541.0,3540.1,3.865]
[1718935485629,2.2991,3541.0,3540.2,1.00196191]
[1718935487524,2.2991,3541.0,3540.5,0.865]
[1718935489332,2.2991,3541.0,3540.3,0.865]
[1718935490064,2.2991,3541.0,3540.2,1.00196191]
[1718935490352,2.2991,3541.0,3540.3,1.415]
[1718935490556,2.2991,3541.0,3540.4,0.54169619]
[1718935495874,2.2991,3541.0,3540.5,0.865]
[1718935496777,0.1202189,3541.4,3540.4,0.54169619]
[1718935496996,0.1202189,3541.4,3541.2,0.865]
[1718935497274,0.07408141,3541.3,3541.2,0.865]
[1718935497642,0.1202189,3541.4,3540.7,3.0]
[1718935497838,0.1202189,3541.4,3541.1,0.865]
[1718935499168,0.1202189,3541.4,3540.9,3.865]
[1718935500580,0.1202189,3541.4,3540.9,3.0]
[1718935500743,0.1202189,3541.4,3540.9,3.865]
[1718935500943,0.1202189,3541.4,3541.0,3.3865]
[1718935501143,0.1202189,3541.4,3541.0,0.3865]
[1718935501578,2.2991,3541.3,3540.7,3.0]
[1718935502003,2.2991,3541.3,3541.0,0.865]
[1718935502495,0.1202189,3541.4,3541.0,0.865]
[1718935503684,0.1202189,3541.4,3541.0,0.3865]
[1718935504063,2.2991,3541.3,3541.0,0.3865]
[1718935504266,2.2991,3541.3,3540.7,3.865]
[1718935505019,2.2991,3541.3,3540.7,3.0]
[1718935507571,0.865,3540.8,3540.7,3.0]
[1718935507771,3.1641,3540.8,3540.5,3.0]
[1718935508472,2.2991,3540.7,3540.5,3.0]
[1718935508676,2.2991,3540.5,3540.4,19.84]
[1718935508886,2.2991,3540.5,3539.5,6.15461913]
[1718935509072,2.2991,3540.2,3539.5,6.15461913]
[1718935509277,0.865,3540.1,3539.5,6.15461913]
[1718935509598,2.2991,3540.2,3539.5,6.15461913]
[1718935509964,2.2991,3540.2,3539.6,3.0]
[1718935510771,2.2991,3540.2,3539.5,6.15461913]
[1718935510982,0.22991,3540.1,3539.5,6.15461913]
[1718935511180,2.2991,3540.0,3539.5,6.15461913]
[1718935511965,2.2991,3540.0,3539.6,3.0]
[1718935512205,2.2991,3540.0,3539.4,3.0]
[1718935512596,2.2991,3540.0,3539.2,3.0]
[1718935512792,2.2991,3540.0,3539.2,3.72868731]
[1718935513111,2.074,3541.1,3539.3,0.55]
[1718935513279,2.2991,3541.0,3539.3,0.55]
[1718935513479,3.10371543,3541.0,3539.4,1.15655604]
[1718935514017,2.2991,3540.9,3539.4,1.15655604]
[1718935514517,2.2991,3540.7,3539.4,1.15655604]
[1718935514677,2.60215174,3540.7,3539.5,0.54352434]
[1718935514876,2.2991,3540.7,3539.5,0.54352434]
[1718935515076,0.07319799,3540.6,3539.5,0.54352434]
[1718935515283,0.07319799,3540.6,3539.6,0.55]
[1718935515482,2.2991,3540.7,3539.6,0.55]